fUST/lending_fUST_20240714
["ID","MTS","AMOUNT","RATE_DAILY","PERIOD"]
[332091500,1720955458180,-152.11310169,0.00026301,2]
[332091501,1720955458192,-1748.85,0.00026301,2]
[332091502,1720955458202,-500.0,0.00026301,2]
[332091503,1720955458212,-194.8,0.00026375,2]
[332091504,1720955458223,-3000.0,0.000265,2]
[332091505,1720955458233,-3000.0,0.0002651,2]
[332091506,1720955458243,-3000.0,0.0002652,2]
[332091507,1720955458252,-3000.0,0.0002653,2]
[332091508,1720955458262,-3000.0,0.0002654,2]
[332091509,1720955458272,-3000.0,0.0002655,2]
[332091510,1720955458281,-3000.0,0.0002656,2]
[332091511,1720955458291,-3000.0,0.0002657,2]
[332091512,1720955458301,-287.14415021,0.00026574,2]
[332091513,1720955458311,-457.51404765,0.00026574,2]
[332091514,1720955458320,-293.73911192,0.00026574,2]
[332091515,1720955458332,-500.0,0.00026575,2]
[332091516,1720955458341,-944.25,0.00026575,2]
[332091517,1720955458351,-500.0,0.00026575,2]
[332091518,1720955458361,-534.03580001,0.00026575,2]
[332091519,1720955458371,-500.0,0.00026575,2]
[332091520,1720955458381,-500.0,0.00026575,2]
[332091521,1720955458391,-1192.16,0.00026575,2]
[332091522,1720955458400,-500.0,0.00026575,2]
[332091523,1720955458410,-500.0,0.00026575,2]
[332091524,1720955458419,-500.0,0.00026575,2]
[332091525,1720955458429,-500.0,0.00026575,2]
[332091526,1720955458439,-500.0,0.00026575,2]
[332091527,1720955458448,-500.0,0.00026575,2]
[332091528,1720955458459,-630.6,0.00026575,2]
[332091529,1720955458469,-500.0,0.00026575,2]
[332091530,1720955458478,-500.0,0.00026575,2]
[332091531,1720955458488,-500.0,0.00026575,2]
[332091532,1720955458498,-654.23,0.00026575,2]
[332091533,1720955458508,-500.0,0.00026575,2]
[332091534,1720955458519,-244.350759,0.00026575,7]
[332091535,1720955458530,-244.350759,0.00026575,7]
[332091536,1720955458540,-500.0,0.00026575,2]
[332091537,1720955458551,-550.83,0.00026575,2]
[332091538,1720955458560,-523.91,0.00026575,2]
[332091539,1720955458570,-507.44,0.00026575,2]
[332091540,1720955458582,-500.0,0.00026575,2]
[332091541,1720955458592,-500.0,0.00026575,2]
[332091542,1720955458602,-624.23983785,0.00026575,2]
[332091543,1720955458612,-260.12514962,0.00026575,2]
[332091544,1720955458622,-500.0,0.00026575,2]
[332091545,1720955458631,-500.0,0.00026575,2]
[332091546,1720955458641,-865.15,0.00026575,2]
[332091547,1720955458650,-500.0,0.00026575,2]
[332091548,1720955458660,-5591.28,0.00026575,2]
[332091549,1720955458670,-285.48338225,0.00026575,2]
[332091550,1720955458679,-500.0,0.00026575,2]
[332091551,1720955458689,-500.0,0.00026575,2]
[332091552,1720955458699,-151.0,0.00026575,2]
[332091553,1720955458708,-151.0,0.00026575,7]
[332091554,1720955458720,-500.0,0.00026575,2]
[332091555,1720955458730,-151.0,0.00026575,7]
[332091556,1720955458739,-500.0,0.00026575,2]
[332091557,1720955458749,-252.01321,0.00026575,7]
[332091558,1720955458759,-500.0,0.00026575,2]
[332091559,1720955458769,-252.01321,0.00026575,7]
[332091560,1720955458779,-1339.98,0.00026575,2]
[332091561,1720955458789,-500.0,0.00026575,2]
[332091562,1720955458800,-500.0,0.00026575,2]
[332091563,1720955458810,-500.0,0.00026575,2]
[332091564,1720955458821,-487.06685843,0.00026575,2]
[332091565,1720955458833,-500.0,0.00026575,2]
[332091566,1720955458843,-500.0,0.00026575,2]
[332091567,1720955458855,-500.0,0.00026575,2]
[332091568,1720955458867,-500.0,0.00026575,2]
[332091569,1720955458877,-246.10631948,0.00026575,2]
[332091570,1720955458886,-500.0,0.00026575,2]
[332091571,1720955458895,-500.0,0.00026575,2]
[332091572,1720955458905,-237.694072,0.00026575,7]
[332091573,1720955458915,-237.694072,0.00026575,7]
[332091574,1720955458927,-10773.97,0.00026575,2]
[332091575,1720955458937,-500.0,0.00026575,2]
[332091576,1720955458947,-435.663302,0.00026575,7]
[332091577,1720955458956,-500.0,0.00026575,2]
[332091578,1720955458966,-663.63,0.00026575,4]
[332091579,1720955458976,-435.663302,0.00026575,7]
[332091580,1720955458986,-538.613127,0.00026575,7]
[332091581,1720955458995,-538.613127,0.00026575,7]
[332091582,1720955459005,-648.91210721,0.00026575,2]
[332091583,1720955459015,-658.44,0.00026575,2]
[332091584,1720955459026,-151.0,0.00026575,7]
[332091585,1720955459038,-597.15,0.00026575,2]
[332091586,1720955459050,-500.0,0.00026575,2]
[332091587,1720955459060,-1748.85,0.00026575,2]
[332091588,1720955459070,-500.0,0.00026575,2]
[332091589,1720955459083,-611.632621,0.00026575,7]
[332091590,1720955459094,-611.632621,0.00026575,7]
[332091591,1720955459105,-3000.0,0.0002658,2]
[332091592,1720955459114,-3000.0,0.0002659,2]
[332091593,1720955459127,-182.616938,0.0002659,7]
[332091594,1720955459138,-182.616938,0.0002659,7]
[332091595,1720955459149,-3000.0,0.000266,2]
[332091596,1720955459160,-3000.0,0.0002661,2]
[332091597,1720955459170,-3000.0,0.0002662,2]
[332091598,1720955459180,-3000.0,0.0002663,2]
[332091599,1720955459190,-260.863233,0.0002663,7]
[332091600,1720955459200,-211.930721,0.0002663,7]
[332091601,1720955459289,-211.930721,0.0002663,7]
[332091602,1720955459301,-151.0,0.0002663,7]
[332091603,1720955459312,-577.954518,0.0002663,7]
[332091604,1720955459323,-577.954518,0.0002663,7]
[332091605,1720955459334,-163.680361,0.0002663,7]
[332091606,1720955459345,-151.0,0.0002663,7]
[332091607,1720955459355,-163.680361,0.0002663,7]
[332091608,1720955459365,-151.0,0.0002663,7]
[332091609,1720955459375,-253.043739,0.0002663,7]
[332091610,1720955459385,-253.043739,0.0002663,7]
[332091611,1720955459395,-3002.486803,0.0002664,2]
[332091612,1720955459405,-300.0,0.00026687,2]
[332091613,1720955459415,-500.0,0.00026849,2]
[332091614,1720955459426,-944.25,0.00026849,2]
[332091615,1720955459437,-500.0,0.00026849,2]
[332091616,1720955459449,-500.0,0.00026849,2]
[332091617,1720955459461,-504.16,0.00026849,2]
[332091618,1720955459470,-1192.16,0.00026849,2]
[332091619,1720955459480,-500.0,0.00026849,2]
[332091620,1720955459489,-500.0,0.00026849,2]
[332091621,1720955459499,-500.0,0.00026849,2]
[332091622,1720955459509,-553.31966395,0.00026849,2]
[332091623,1720955459519,-500.0,0.00026849,2]
[332091624,1720955459529,-500.0,0.00026849,2]
[332091625,1720955459540,-654.23,0.00026849,2]
[332091626,1720955459550,-500.0,0.00026849,2]
[332091627,1720955459561,-500.0,0.00026849,2]
[332091628,1720955459571,-550.83,0.00026849,2]
[332091629,1720955459583,-507.44,0.00026849,2]
[332091630,1720955459593,-500.0,0.00026849,2]
[332091631,1720955459603,-500.0,0.00026849,2]
[332091632,1720955459614,-865.15,0.00026849,2]
[332091633,1720955459624,-500.0,0.00026849,2]
[332091634,1720955459634,-5591.28,0.00026849,2]
[332091635,1720955459643,-500.0,0.00026849,2]
[332091636,1720955459653,-607.19484177,0.00026849,2]
[332091637,1720955459663,-500.0,0.00026849,2]
[332091638,1720955459673,-500.0,0.00026849,2]
[332091639,1720955459684,-1339.98,0.00026849,2]
[332091640,1720955459693,-500.0,0.00026849,2]
[332091641,1720955459703,-500.0,0.00026849,2]
[332091642,1720955459714,-500.0,0.00026849,2]
[332091643,1720955459724,-500.0,0.00026849,2]
[332091644,1720955459734,-500.0,0.00026849,2]
[332091645,1720955459745,-500.0,0.00026849,2]
[332091646,1720955459755,-500.0,0.00026849,2]
[332091647,1720955459765,-10773.97,0.00026849,2]
[332091648,1720955459775,-500.0,0.00026849,2]
[332091649,1720955459784,-458.19270656,0.00026849,2]
[332091650,1720955459794,-663.63,0.00026849,4]
[332091651,1720955459804,-658.44,0.00026849,2]
[332091652,1720955459814,-597.15,0.00026849,2]
[332091653,1720955459827,-500.0,0.00026849,2]
[332091654,1720955459837,-1748.85,0.00026849,2]
[332091655,1720955459847,-332.28812319,0.00026849,2]
[332091656,1720955459857,-151.0,0.00026849,7]
[332091657,1720955459867,-151.0,0.00026849,7]
[332091658,1720955459879,-151.0,0.0002685,7]
[332091659,1720955459890,-1407.0,0.0002686,2]
[332091660,1720955459900,-393.17481867,0.00026869,2]
[332091661,1720955459910,-194.8,0.00026879,2]
[332091662,1720955459920,-158.28553448,0.00026929,2]
[332091663,1720955459930,-202.09799933,0.0002694,2]
[332091664,1720955459939,-393.17481867,0.00026952,2]
[332091665,1720955459949,-151.0,0.00026971,7]
[332091666,1720955459959,-151.0,0.00026971,7]
[332091667,1720955459969,-151.435911,0.00026971,7]
[332091668,1720955459979,-393.17481867,0.00026991,2]
[332091669,1720955459989,-154.59445059,0.00027012,2]
[332091670,1720955459999,-5625.404,0.00027113,2]
[332091671,1720955460009,-500.0,0.00027123,2]
[332091672,1720955460019,-944.25,0.00027123,2]
[332091673,1720955460030,-500.0,0.00027123,2]
[332091674,1720955460040,-500.0,0.00027123,2]
[332091675,1720955460051,-356.977084,0.00027123,7]
[332091676,1720955460063,-356.977084,0.00027123,7]
[332091677,1720955460075,-151.0,0.00027123,4]
[332091678,1720955460086,-1192.16,0.00027123,2]
[332091679,1720955460098,-500.0,0.00027123,2]
[332091680,1720955460107,-500.0,0.00027123,2]
[332091681,1720955460117,-151.0,0.00027123,7]
[332091682,1720955460129,-500.0,0.00027123,2]
[332091683,1720955460140,-500.0,0.00027123,2]
[332091684,1720955460151,-654.23,0.00027123,2]
[332091685,1720955460162,-500.0,0.00027123,2]
[332091686,1720955460172,-500.0,0.00027123,2]
[332091687,1720955460182,-550.83,0.00027123,2]
[332091688,1720955460192,-507.44,0.00027123,2]
[332091689,1720955460201,-500.0,0.00027123,2]
[332091690,1720955460211,-500.0,0.00027123,2]
[332091691,1720955460222,-865.15,0.00027123,2]
[332091692,1720955460232,-500.0,0.00027123,2]
[332091693,1720955460243,-5591.28,0.00027123,2]
[332091694,1720955460252,-500.0,0.00027123,2]
[332091695,1720955460263,-500.0,0.00027123,2]
[332091696,1720955460273,-500.0,0.00027123,2]
[332091697,1720955460284,-1339.98,0.00027123,2]
[332091698,1720955460294,-500.0,0.00027123,2]
[332091699,1720955460304,-500.0,0.00027123,2]
[332091700,1720955460314,-500.0,0.00027123,2]
[332091701,1720955460325,-500.0,0.00027123,2]
[332091702,1720955460335,-500.0,0.00027123,2]
[332091703,1720955460344,-500.0,0.00027123,2]
[332091704,1720955460355,-10773.97,0.00027123,2]
[332091705,1720955460364,-500.0,0.00027123,2]
[332091706,1720955460374,-663.63,0.00027123,4]
[332091707,1720955460384,-658.44,0.00027123,2]
[332091708,1720955460394,-597.15,0.00027123,2]
[332091709,1720955460404,-500.0,0.00027123,2]
[332091710,1720955460415,-1748.85,0.00027123,2]
[332091711,1720955460425,-166.4749042,0.00027123,2]
[332091712,1720955460435,-150.0,0.0002719,2]
[332091713,1720955460446,-289.426,0.0002719,2]
[332091714,1720955460455,-150.0,0.0002719,2]
[332091715,1720955460465,-150.0,0.0002719,2]
[332091716,1720955460475,-150.711,0.0002719,2]
[332091717,1720955460485,-503.0,0.0002719,2]
[332091718,1720955460495,-750.0,0.00027195,2]
[332091719,1720955460505,-194.8,0.00027384,2]
[332091720,1720955460514,-894.05585834,0.00027397,2]
[332091721,1720955460524,-227.089534,0.00027397,7]
[332091722,1720955460535,-602.943003,0.00027397,7]
[332091723,1720955460544,-602.943003,0.00027397,7]
[332091724,1720955460554,-500.0,0.00027397,2]
[332091725,1720955460564,-944.25,0.00027397,2]
[332091726,1720955460574,-500.0,0.00027397,2]
[332091727,1720955460584,-500.0,0.00027397,2]
[332091728,1720955460595,-1192.16,0.00027397,2]
[332091729,1720955460604,-500.0,0.00027397,2]
[332091730,1720955460614,-500.0,0.00027397,2]
[332091731,1720955460624,-500.0,0.00027397,2]
[332091732,1720955460633,-500.0,0.00027397,2]
[332091733,1720955460647,-500.0,0.00027397,2]
[332091734,1720955460657,-500.0,0.00027397,2]
[332091735,1720955460667,-500.0,0.00027397,2]
[332091736,1720955460677,-500.0,0.00027397,2]
[332091737,1720955460686,-500.0,0.00027397,2]
[332091738,1720955460696,-500.0,0.00027397,2]
[332091739,1720955460705,-500.0,0.00027397,2]
[332091740,1720955460715,-500.0,0.00027397,2]
[332091741,1720955460724,-357.70365407,0.00027397,2]
[332091742,1720955460734,-646.42797551,0.00027397,2]
[332091743,1720955460744,-500.0,0.00027397,2]
[332091744,1720955460754,-654.23,0.00027397,2]
[332091745,1720955460765,-500.0,0.00027397,2]
[332091746,1720955460774,-500.0,0.00027397,2]
[332091747,1720955460784,-550.83,0.00027397,2]
[332091748,1720955460796,-507.44,0.00027397,2]
[332091749,1720955460806,-315.1860659,0.00027397,2]
[332091750,1720955460816,-500.0,0.00027397,2]
[332091751,1720955460827,-865.15,0.00027397,2]
[332091752,1720955460836,-184.87929523,0.00027397,2]
[332091753,1720955460846,-5591.28,0.00027397,2]
[332091754,1720955460856,-309.1394754,0.00027397,2]
[332091755,1720955460866,-500.0,0.00027397,2]
[332091756,1720955460876,-500.0,0.00027397,2]
[332091757,1720955460886,-1339.98,0.00027397,2]
[332091758,1720955460897,-500.0,0.00027397,2]
[332091759,1720955460907,-500.0,0.00027397,2]
[332091760,1720955460918,-648.55804055,0.00027397,2]
[332091761,1720955460929,-500.0,0.00027397,2]
[332091762,1720955460938,-500.0,0.00027397,2]
[332091763,1720955460949,-10773.97,0.00027397,2]
[332091764,1720955460959,-663.63,0.00027397,4]
[332091765,1720955460969,-658.44,0.00027397,2]
[332091766,1720955460978,-597.15,0.00027397,2]
[332091767,1720955460989,-1748.85,0.00027397,2]
[332091768,1720955460999,-151.0,0.00027397,2]
[332091769,1720955461008,-151.0,0.00027397,2]
[332091770,1720955461018,-196.0915281,0.00027397,120]
[332091771,1720955461028,-175.5061073,0.000274,2]
[332091772,1720955461043,-967.02000029,0.00027429,2]
[332091773,1720955461053,-158.28553448,0.00027451,2]
[332091774,1720955461064,-400.0,0.0002747,2]
[332091775,1720955461076,-43698.03022018,0.000275,2]
[332091776,1720955461087,-244.350759,0.000275,7]
[332091777,1720955461098,-244.350759,0.000275,7]
[332091778,1720955461108,-237.694072,0.000275,7]
[332091779,1720955461118,-237.694072,0.000275,7]
[332091780,1720955461130,-200.804126,0.000275,7]
[332091781,1720955461140,-435.663302,0.000275,7]
[332091782,1720955461149,-435.663302,0.000275,7]
[332091783,1720955461159,-538.613127,0.000275,7]
[332091784,1720955461169,-538.613127,0.000275,7]
[332091785,1720955461179,-151.0,0.000275,7]
[332091786,1720955461189,-611.632621,0.000275,7]
[332091787,1720955461199,-611.632621,0.000275,7]
[332091788,1720955461209,-393.17481867,0.00027522,2]
[332091789,1720955461219,-159.54345515,0.0002762,2]
[332091790,1720955461229,-151.0,0.0002766,2]
[332091791,1720955461239,-151.0,0.0002766,7]
[332091792,1720955461250,-151.0,0.0002766,7]
[332091793,1720955461260,-252.01321,0.0002766,7]
[332091794,1720955461269,-252.01321,0.0002766,7]
[332091795,1720955461279,-500.0,0.00027671,2]
[332091796,1720955461288,-944.25,0.00027671,2]
[332091797,1720955461299,-500.0,0.00027671,2]
[332091798,1720955461308,-500.0,0.00027671,2]
[332091799,1720955461319,-1192.16,0.00027671,2]
[332091800,1720955461332,-500.0,0.00027671,2]
[332091801,1720955461342,-500.0,0.00027671,2]
[332091802,1720955461351,-182.616938,0.00027671,7]
[332091803,1720955461360,-182.616938,0.00027671,7]
[332091804,1720955461369,-151.0,0.00027671,2]
[332091805,1720955461380,-500.0,0.00027671,2]
[332091806,1720955461390,-654.23,0.00027671,2]
[332091807,1720955461400,-500.0,0.00027671,2]
[332091808,1720955461411,-500.0,0.00027671,2]
[332091809,1720955461421,-550.83,0.00027671,2]
[332091810,1720955461431,-507.44,0.00027671,2]
[332091811,1720955461440,-865.15,0.00027671,2]
[332091812,1720955461451,-5591.28,0.00027671,2]
[332091813,1720955461461,-211.930721,0.00027671,7]
[332091814,1720955461471,-211.930721,0.00027671,7]
[332091815,1720955461481,-500.0,0.00027671,2]
[332091816,1720955461491,-151.0,0.00027671,7]
[332091817,1720955461501,-500.0,0.00027671,2]
[332091818,1720955461511,-1339.98,0.00027671,2]
[332091819,1720955461522,-500.0,0.00027671,2]
[332091820,1720955461532,-500.0,0.00027671,2]
[332091821,1720955461541,-577.954518,0.00027671,7]
[332091822,1720955461551,-577.954518,0.00027671,7]
[332091823,1720955461561,-500.0,0.00027671,2]
[332091824,1720955461571,-163.680361,0.00027671,7]
[332091825,1720955461583,-151.0,0.00027671,7]
[332091826,1720955461592,-163.680361,0.00027671,7]
[332091827,1720955461602,-151.0,0.00027671,7]
[332091828,1720955461612,-253.043739,0.00027671,7]
[332091829,1720955461623,-253.043739,0.00027671,7]
[332091830,1720955461633,-500.0,0.00027671,2]
[332091831,1720955461643,-10773.97,0.00027671,2]
[332091832,1720955461653,-663.63,0.00027671,4]
[332091833,1720955461663,-658.44,0.00027671,2]
[332091834,1720955461673,-597.15,0.00027671,2]
[332091835,1720955461683,-1748.85,0.00027671,2]
[332091836,1720955461692,-967.02000029,0.00027676,2]
[332091837,1720955461702,-159.54345515,0.00027768,2]
[332091838,1720955461712,-630.59261439,0.00027831,2]
[332091839,1720955461722,-194.8,0.00027888,2]
[332091840,1720955461732,-967.02000029,0.00027907,2]
[332091841,1720955461742,-500.0,0.00027945,2]
[332091842,1720955461751,-944.25,0.00027945,2]
[332091843,1720955461760,-619.59,0.00027945,2]
[332091844,1720955461770,-500.0,0.00027945,2]
[332091845,1720955461859,-1192.16,0.00027945,2]
[332091846,1720955461869,-500.0,0.00027945,2]
[332091847,1720955461879,-276.56657518,0.00027945,2]
[332091848,1720955461889,-500.0,0.00027945,2]
[332091849,1720955461899,-654.23,0.00027945,2]
[332091850,1720955461910,-500.0,0.00027945,2]
[332091851,1720955461920,-500.0,0.00027945,2]
[332091852,1720955461929,-550.83,0.00027945,2]
[332091853,1720955461939,-507.44,0.00027945,2]
[332091854,1720955461948,-865.15,0.00027945,2]
[332091855,1720955461958,-5591.28,0.00027945,2]
[332091856,1720955461969,-500.0,0.00027945,2]
[332091857,1720955461979,-591.63205234,0.00027945,2]
[332091858,1720955461989,-1339.98,0.00027945,2]
[332091859,1720955461999,-500.0,0.00027945,2]
[332091860,1720955462009,-505.7,0.00027945,2]
[332091861,1720955462020,-500.0,0.00027945,2]
[332091862,1720955462030,-500.0,0.00027945,2]
[332091863,1720955462041,-10773.97,0.00027945,2]
[332091864,1720955462051,-663.63,0.00027945,4]
[332091865,1720955462068,-658.44,0.00027945,2]
[332091866,1720955462081,-597.15,0.00027945,2]
[332091867,1720955462091,-1748.85,0.00027945,2]
[332091868,1720955462103,-25817.15095053,0.0002799,2]
[332091869,1720955462115,-151.0,0.0002799,7]
[332091870,1720955462125,-151.0,0.0002799,7]
[332091871,1720955462136,-307.28386309,0.00028,30]
[332091872,1720955462146,-515.8936904,0.00028,2]
[332091873,1720955462155,-1010.29185341,0.00028,2]
[332091874,1720955462165,-223.71703034,0.00028005,2]
[332091875,1720955462176,-967.02000029,0.00028029,2]
[332091876,1720955462185,-160.22197401,0.00028053,2]
[332091877,1720955462194,-306.0,0.00028137,2]
[332091878,1720955462204,-393.17481867,0.00028165,2]
[332091879,1720955462214,-967.02000029,0.00028203,2]
[332091880,1720955462224,-151.0,0.00028219,7]
[332091881,1720955462234,-500.0,0.00028219,2]
[332091882,1720955462244,-944.25,0.00028219,2]
[332091883,1720955462253,-535.06,0.00028219,2]
[332091884,1720955462264,-1192.16,0.00028219,2]
[332091885,1720955462273,-500.0,0.00028219,2]
[332091886,1720955462284,-151.0,0.00028219,7]
[332091887,1720955462294,-500.0,0.00028219,2]
[332091888,1720955462304,-654.23,0.00028219,2]
[332091889,1720955462314,-500.0,0.00028219,2]
[332091890,1720955462327,-500.0,0.00028219,2]
[332091891,1720955462338,-550.83,0.00028219,2]
[332091892,1720955462351,-507.44,0.00028219,2]
[332091893,1720955462361,-865.15,0.00028219,2]
[332091894,1720955462370,-5591.28,0.00028219,2]
[332091895,1720955462382,-500.0,0.00028219,2]
[332091896,1720955462392,-1339.98,0.00028219,2]
[332091897,1720955462402,-620.2852694,0.00028219,2]
[332091898,1720955462412,-258.24114799,0.00028219,2]
[332091899,1720955462422,-10773.97,0.00028219,2]
[332091900,1720955462432,-663.63,0.00028219,4]
[332091901,1720955462443,-658.44,0.00028219,2]
[332091902,1720955462453,-597.15,0.00028219,2]
[332091903,1720955462464,-1748.85,0.00028219,2]
[332091904,1720955462474,-167.42203445,0.00028235,2]
[332091905,1720955462483,-967.02000029,0.00028239,2]
[332091906,1720955462492,-223.71703034,0.00028256,2]
[332091907,1720955462502,-393.17481867,0.00028297,2]
[332091908,1720955462511,-393.17481867,0.0002831,2]
[332091909,1720955462521,-393.17481867,0.00028359,2]
[332091910,1720955462532,-194.8,0.00028392,3]
[332091911,1720955462543,-160.22197401,0.00028402,2]
[332091912,1720955462553,-154.59445059,0.00028459,2]
[332091913,1720955462564,-393.17481867,0.00028463,2]
[332091914,1720955462576,-500.0,0.00028493,2]
[332091915,1720955462586,-944.25,0.00028493,2]
[332091916,1720955462595,-356.977084,0.00028493,7]
[332091917,1720955462606,-356.977084,0.00028493,7]
[332091918,1720955462616,-282.621887,0.00028493,4]
[332091919,1720955462626,-39.66474309,0.00028493,2]
[332091920,1720955462646,-1152.49525691,0.00028493,2]
[332091921,1720955462656,-166.34977866,0.00028493,2]
[332091922,1720955462804,-500.0,0.00024657,2]
[332091923,1720955462814,-500.0,0.00024657,2]
[332091924,1720955462825,-500.0,0.00024657,2]
[332091925,1720955462835,-500.0,0.00024657,2]
[332091926,1720955462845,-136.39217822,0.00024657,2]
[332091927,1720955463117,-363.60782178,0.00024657,2]
[332091928,1720955463127,-500.0,0.00024657,2]
[332091929,1720955463136,-500.0,0.0002493,2]
[332091930,1720955463147,-209.96032798,0.0002493,2]
[332091931,1720955463157,-333.65022134,0.00028493,2]
[332091932,1720955463166,-500.0,0.00028493,2]
[332091933,1720955463176,-654.23,0.00028493,2]
[332091934,1720955463186,-500.0,0.00028493,2]
[332091935,1720955463195,-500.0,0.00028493,2]
[332091936,1720955463206,-550.83,0.00028493,2]
[332091937,1720955463218,-865.15,0.00028493,2]
[332091938,1720955463227,-5591.28,0.00028493,2]
[332091939,1720955463238,-254.95,0.00028493,2]
[332091940,1720955463248,-1339.98,0.00028493,2]
[332091941,1720955463258,-10773.97,0.00028493,2]
[332091942,1720955463268,-663.63,0.00028493,4]
[332091943,1720955463278,-658.44,0.00028493,2]
[332091944,1720955463288,-597.15,0.00028493,2]
[332091945,1720955463299,-1748.85,0.00028493,2]
[332091946,1720955463309,-393.17481867,0.00028627,2]
[332091947,1720955463319,-967.02000029,0.00028642,2]
[332091948,1720955463331,-156.39659218,0.00028643,2]
[332091961,1720956430141,-208.08631229,0.00018,2]
[332091962,1720956434146,-25.81108671,0.00018,2]
[332091963,1720956434169,-293.73911192,0.0002,2]
[332091964,1720956434191,-167.27715113,0.00021096,2]
[332091965,1720956445096,-193.32899505,0.00021096,2]
[332091966,1720956450317,-225.27740875,0.00021096,2]
[332091967,1720956453112,-164.11644507,0.00021096,2]
[332091968,1720956453139,-52.27816247,0.00022166,2]
[332091972,1720956550123,-250.0,0.000176,2]
[332091974,1720956557121,-664.73470879,0.000176,2]
[332091975,1720956557144,-185.9195673,0.000191,2]
[332091976,1720956557166,-300.0,0.00019999,2]
[332091977,1720956557193,-2827.98274738,0.0002,2]
[332091978,1720956560162,-2744.40294766,0.0002,2]
[332091979,1720956561114,-196.84039408,0.0002,2]
[332092034,1720956634195,-157.83467219,0.00019165,2]
[332092036,1720956634205,-5868.41784729,0.0002,2]
[332092042,1720956634253,-1000.0,0.0002,2]
[332092044,1720956634264,-484.83082982,0.0002,2]
[332092422,1720956638068,-6971.28093876,0.0002,2]
[332092424,1720956638078,-201.46090254,0.0002,2]
[332092427,1720956638097,-1204.80070346,0.0002,2]
[332092430,1720956638121,-1268.52466563,0.0002,2]
[332092432,1720956638132,-294.48751517,0.00020543,2]
[332092434,1720956638143,-250.0,0.00020709,2]
[332092436,1720956638152,-502.70349642,0.000212,2]
[332092438,1720956638163,-1023.33185337,0.00021917,2]
[332092441,1720956638174,-156.00050148,0.00021917,2]
[332092443,1720956638184,-225.27740875,0.00022165,2]
[332092445,1720956638195,-109.58704553,0.00022166,2]
[332092447,1720956638207,-103133.55997063,0.00022166,2]
[332092449,1720956638218,-428.71334484,0.00022166,2]
[332092451,1720956638229,-225.94652212,0.00022166,2]
[332092454,1720956638240,-764.58301536,0.00022166,2]
[332092456,1720956638250,-462.6088505,0.00022369,2]
[332092458,1720956638261,-163.576048,0.00022416,2]
[332092460,1720956638271,-208.68040741,0.00022582,2]
[332092462,1720956638280,-24900.0,0.00022652,2]
[332092464,1720956638290,-161.251526,0.00022683,2]
[332092466,1720956638301,-166.666669,0.00022714,2]
[332092468,1720956638312,-208.6804074,0.00023287,2]
[332092470,1720956638322,-239.54682116,0.00023455,2]
[332092472,1720956638332,-166.666669,0.00023897,2]
[332092474,1720956638342,-208.6804074,0.00023992,2]
[332092476,1720956638351,-1642.99427115,0.0002448,2]
[332092479,1720956638374,-3421.63915755,0.0002448,2]
[332092481,1720956638384,-604.8626182,0.0002448,2]
[332092483,1720956638393,-654.27174006,0.00024647,3]
[332092485,1720956638403,-230.08868985,0.00024656,2]
[332092487,1720956638416,-502.39202574,0.00024657,2]
[332092489,1720956638426,-500.0,0.00024657,2]